bitfinex-derivatives/quotes_BTCF0:USTF0_20241218
["timestamp","ask_amount","ask_price","bid_price","bid_amount"]
[1734534440411,0.3608,103970.0,103960.0,0.25360862]
[1734534441105,0.5802,103980.0,103960.0,0.25360862]
[1734534441307,0.5802,103980.0,103950.0,0.20562512]
[1734534441615,0.048107,103950.0,103940.0,0.01888996]
[1734534441912,0.3608,103950.0,103940.0,0.01888996]
[1734534442109,0.3608,103950.0,103940.0,0.27250758]
[1734534442405,0.5895,103970.0,103940.0,0.22439658]
[1734534442604,0.3608,103970.0,103960.0,0.20559108]
[1734534442905,0.408898,103970.0,103960.0,8.446e-05]
[1734534443315,0.3608,103970.0,103960.0,8.446e-05]
[1734534443610,0.3678,103970.0,103960.0,0.04818646]
[1734534444001,0.3708,103970.0,103960.0,0.04818646]
[1734534445003,0.3638,103970.0,103960.0,0.04818646]
[1734534445204,0.01,103970.0,103960.0,0.25369308]
[1734534445513,0.01,103970.0,103960.0,0.04818646]
[1734534445904,0.01,103970.0,103960.0,0.25369308]
[1734534446215,0.10010111,104000.0,103990.0,0.048088]
[1734534446399,0.10010111,104000.0,103990.0,0.61439462]
[1734534446713,0.10010111,104000.0,103980.0,0.56630662]
[1734534446911,0.10010111,104000.0,103980.0,0.61439762]
[1734534447213,0.46090111,104000.0,103990.0,0.048088]
[1734534447607,0.46090111,104000.0,103980.0,0.56630662]
[1734534447816,0.46090111,104000.0,103960.0,0.25469108]
[1734534447817,0.3608,103990.0,103960.0,0.25469108]
[1734534448002,0.3608,103980.0,103960.0,0.35636446]
[1734534448201,0.408894,103980.0,103960.0,0.35636446]
[1734534448403,0.3608,103970.0,103960.0,0.35636446]
[1734534448603,0.643798,103970.0,103960.0,8.446e-05]
[1734534449006,0.5957,103970.0,103960.0,8.446e-05]
[1734534449215,0.5957,103970.0,103960.0,0.06742437]
[1734534449601,0.5957,103970.0,103960.0,0.01932237]
[1734534449909,0.5957,103970.0,103960.0,0.02132237]
[1734534450107,0.5957,103970.0,103960.0,0.02232237]
[1734534450407,0.643798,103970.0,103960.0,0.00308446]
[1734534450609,0.643798,103970.0,103940.0,0.11510896]
[1734534450808,0.3608,103960.0,103950.0,0.048103]
[1734534451015,0.2349,103970.0,103960.0,0.048102]
[1734534451212,0.3608,103980.0,103960.0,0.25360862]
[1734534451515,0.3608,103980.0,103950.0,0.048103]
[1734534451516,0.3608,103980.0,103970.0,8.103e-05]
[1734534451706,0.3608,103980.0,103970.0,0.04817903]
[1734534451907,0.3608,103980.0,103970.0,0.20558765]
[1734534452108,0.79915285,104000.0,103970.0,0.61448565]
[1734534452415,0.3608,103990.0,103980.0,0.25359662]
[1734534453317,0.10010111,104000.0,103990.0,0.048088]
[1734534453514,0.10010111,104000.0,103990.0,0.61439462]
[1734534454012,0.10910111,104000.0,103990.0,0.61439462]
[1734534454914,0.10910111,104000.0,103990.0,0.61539462]
[1734534455108,0.10910111,104000.0,103990.0,0.409888]
[1734534455509,0.11110111,104000.0,103990.0,0.409888]
[1734534455823,0.11110111,104000.0,103990.0,0.61539462]
[1734534456010,0.11155174,104010.0,104000.0,0.048084]
[1734534456316,0.11155174,104010.0,104000.0,0.61439062]
[1734534456616,0.11155174,104010.0,104000.0,0.25359062]
[1734534456806,0.47235174,104010.0,103990.0,0.25459262]
[1734534457011,0.001,104000.0,103990.0,0.30267762]
[1734534457306,0.001,104000.0,103990.0,0.66347762]
[1734534457711,0.001,104000.0,103990.0,0.96347762]
[1734534458013,0.001,104000.0,103990.0,0.96247762]
[1734534458412,0.001,104000.0,103990.0,0.66247762]
[1734534458613,0.48044023,104010.0,103990.0,0.66247762]
[1734534458912,0.11964023,104010.0,104000.0,0.408884]
[1734534459116,0.11364023,104010.0,104000.0,0.408884]
[1734534459313,0.11164023,104010.0,104000.0,0.408884]
[1734534459715,0.11764023,104010.0,104000.0,0.61439062]
[1734534460517,0.00608849,104010.0,104000.0,0.62439062]
[1734534460924,0.00608849,104010.0,104000.0,0.418884]
[1734534461106,0.00608849,104010.0,104000.0,0.058084]
[1734534461311,0.41496749,104010.0,104000.0,0.01]
[1734534461614,0.92047611,104010.0,103970.0,0.41337703]
[1734534461819,0.3608,103990.0,103970.0,0.40337903]
[1734534462114,0.3608,103990.0,103970.0,0.35528103]
[1734534462416,0.408893,103980.0,103970.0,0.01899091]
[1734534462617,0.408893,103980.0,103950.0,0.01]
[1734534462918,0.3608,103960.0,103950.0,0.01]
[1734534463609,0.769702,103960.0,103950.0,0.0101177]
[1734534464009,0.048107,103950.0,103920.0,0.05794733]
[1734534464334,0.3608,103930.0,103910.0,0.058123]
[1734534464504,0.3608,103930.0,103920.0,0.06748267]
[1734534464707,0.3608,103930.0,103920.0,0.01936167]
[1734534464920,0.40902744,103930.0,103920.0,0.00011248]
[1734534465111,0.96265406,103930.0,103900.0,0.1]
[1734534465424,0.3608,103910.0,103900.0,0.1]
[1734534466013,0.3608,103910.0,103900.0,0.14813]
[1734534466307,0.3608,103920.0,103910.0,0.048125]
[1734534466508,0.47235174,103920.0,103910.0,0.048125]
[1734534466715,0.47235174,103920.0,103910.0,9.113e-05]
[1734534467514,0.3608,103920.0,103910.0,9.113e-05]
[1734534467708,0.3608,103920.0,103910.0,0.04821613]
[1734534468017,0.3608,103920.0,103910.0,9.113e-05]
[1734534468212,0.564,103920.0,103910.0,9.113e-05]
[1734534468413,0.5645,103920.0,103910.0,0.00059113]
[1734534468625,0.5665,103920.0,103910.0,0.00059113]
[1734534468920,0.5675,103920.0,103910.0,0.00059113]
[1734534469428,0.615621,103920.0,103910.0,0.00059113]
[1734534469723,0.567,103920.0,103900.0,0.11908241]
[1734534469924,0.3608,103910.0,103900.0,0.16721241]
[1734534470425,0.3608,103910.0,103900.0,0.11908241]
[1734534470616,0.3608,103910.0,103900.0,0.11918166]
[1734534471228,0.408925,103910.0,103900.0,0.10209925]
[1734534471725,0.408925,103910.0,103900.0,0.10309925]
[1734534472430,0.04813,103900.0,103870.0,0.403342]
[1734534472630,0.3608,103890.0,103870.0,0.403342]
[1734534473223,0.3608,103890.0,103880.0,0.048139]
[1734534473417,0.5556,103910.0,103880.0,0.37970448]
[1734534473619,0.5556,103910.0,103900.0,0.04813]
[1734534473924,0.564,103920.0,103890.0,0.56630662]
[1734534474123,0.3608,103910.0,103890.0,0.25363962]
[1734534474730,0.3628,103910.0,103890.0,0.25363962]
[1734534474927,0.3638,103910.0,103890.0,0.25363962]
[1734534477124,0.3608,103900.0,103880.0,0.37970448]
[1734534477328,0.3608,103900.0,103880.0,0.01890448]
[1734534478027,0.3638,103910.0,103880.0,0.06704248]
[1734534478326,0.3608,103910.0,103880.0,0.01990448]
[1734534478526,0.3608,103900.0,103880.0,0.07004248]
[1734534478714,0.3608,103910.0,103880.0,0.07004248]
[1734534479114,0.3608,103910.0,103880.0,0.43084248]
[1734534479314,0.3608,103910.0,103880.0,0.43084048]
[1734534480226,0.3608,103900.0,103880.0,0.07004048]
[1734534480620,0.3608,103900.0,103880.0,0.02190448]
[1734534480931,0.3608,103900.0,103880.0,0.06704248]
[1734534481731,0.3608,103900.0,103880.0,0.02190448]
[1734534482429,0.3608,103910.0,103890.0,0.3608]
[1734534482624,0.3608,103910.0,103890.0,0.56630662]
[1734534482817,0.55411144,103930.0,103910.0,0.048125]
[1734534483024,0.19331144,103930.0,103910.0,0.048125]
[1734534483223,0.55411144,103930.0,103900.0,0.61443462]
[1734534483528,0.55411144,103930.0,103890.0,0.3608]
[1734534483529,0.3608,103920.0,103890.0,0.61443962]
[1734534483733,0.55411144,103930.0,103910.0,0.25363062]
[1734534484520,0.20131144,103930.0,103910.0,0.61443062]
[1734534484726,0.20131144,103930.0,103910.0,0.96991062]
[1734534485029,0.20131144,103930.0,103910.0,0.97091062]
[1734534485030,0.01061144,103930.0,103910.0,0.97091062]
[1734534485229,0.01061144,103930.0,103920.0,0.048121]
[1734534485428,0.01061144,103930.0,103920.0,0.408921]
[1734534485729,0.01061144,103930.0,103920.0,0.708921]
[1734534485730,0.00861144,103930.0,103920.0,0.708921]
[1734534485921,0.56861,103970.0,103940.0,0.048108]
[1734534485922,0.36121,103970.0,103940.0,0.048108]
[1734534486124,0.36121,103970.0,103960.0,0.20550662]
[1734534486325,0.00041,103970.0,103960.0,0.25360862]
[1734534486635,0.00041,103970.0,103960.0,0.61440862]
[1734534486827,0.00041,103970.0,103960.0,0.40897393]
[1734534487226,0.00041,103970.0,103960.0,7.193e-05]
[1734534487628,0.00841,103970.0,103960.0,0.00107193]
[1734534488130,0.01241,103970.0,103960.0,0.00107193]
[1734534488331,0.01372801,103970.0,103960.0,0.00107193]
[1734534488530,0.37452801,103970.0,103960.0,0.00107193]
[1734534488724,0.01372801,103970.0,103960.0,0.00107193]
[1734534488929,0.37452801,103970.0,103960.0,0.00107193]
[1734534489134,0.37452801,103970.0,103960.0,0.04917393]
[1734534491235,0.37452801,103970.0,103960.0,0.00107193]
[1734534492728,0.42262601,103970.0,103960.0,0.00107193]
[1734534492934,0.37452801,103970.0,103960.0,0.00107193]
[1734534494934,0.42262601,103970.0,103960.0,0.00107193]
[1734534495235,0.048104,103960.0,103940.0,0.00970117]
[1734534495441,0.77102601,103950.0,103920.0,0.41036302]
[1734534495636,0.3608,103940.0,103920.0,0.04956302]
[1734534495826,0.3608,103930.0,103920.0,0.00144302]
[1734534496139,0.3608,103930.0,103910.0,0.39184356]
[1734534496140,0.048121,103920.0,103910.0,0.34372056]
[1734534496434,0.048121,103920.0,103900.0,0.00011057]
[1734534496435,0.048125,103910.0,103900.0,0.00011057]
[1734534496638,0.04813,103900.0,103890.0,0.84761633]
[1734534496837,0.40893,103900.0,103890.0,0.84761633]
[1734534497036,0.048141,103880.0,103870.0,0.28618983]
[1734534497234,0.97524762,103880.0,103870.0,0.28618983]
[1734534497432,0.048144,103870.0,103860.0,0.35342779]
[1734534497631,0.61452667,103870.0,103860.0,0.35342779]
[1734534497837,0.40902005,103870.0,103860.0,0.01]
[1734534498242,0.52057179,103870.0,103860.0,0.01]
[1734534498647,0.4737458,103870.0,103860.0,0.058148]
[1734534499349,0.50334214,103870.0,103860.0,0.058148]
[1734534499735,0.14354214,103870.0,103860.0,0.058148]
[1734534500143,0.04815,103860.0,103840.0,0.01907614]
[1734534500342,0.3608,103850.0,103840.0,0.06723114]
[1734534500645,0.36211801,103850.0,103840.0,0.06723114]
[1734534501033,0.00131801,103850.0,103840.0,0.27273776]
[1734534501343,0.00131801,103850.0,103840.0,0.06730111]
[1734534501543,0.00231801,103850.0,103840.0,0.07330111]
[1734534501742,0.00231801,103850.0,103840.0,0.27880773]
[1734534502043,0.1125447,103860.0,103850.0,0.048153]
[1734534502250,0.1125447,103860.0,103850.0,0.1948]
[1734534502437,0.1125447,103860.0,103840.0,0.39594611]
[1734534502438,0.5214927,103860.0,103840.0,0.03514611]
[1734534502745,0.4733447,103860.0,103840.0,0.03814611]
[1734534503146,0.40895,103860.0,103840.0,0.03814611]
[1734534503447,0.40895,103860.0,103840.0,0.03714611]
[1734534503644,0.001,103850.0,103840.0,0.04014611]
[1734534504144,0.08426647,103850.0,103840.0,0.004]
[1734534504741,0.001,103850.0,103840.0,0.008]
[1734534504936,0.409953,103850.0,103840.0,0.008]
[1734534505237,0.409953,103850.0,103840.0,0.00807833]
[1734534505545,0.49421947,103850.0,103840.0,0.00807833]
[1734534506137,0.49421947,103850.0,103840.0,0.01107833]
[1734534506735,0.69972609,103850.0,103840.0,0.01107833]
[1734534507041,0.69972609,103850.0,103820.0,0.3918]
[1734534507042,0.048162,103830.0,103820.0,0.01960187]
[1734534507242,0.408962,103830.0,103820.0,0.01960187]
[1734534507547,0.97526862,103830.0,103820.0,0.01]
[1734534508350,0.769762,103830.0,103820.0,0.01]
[1734534508537,0.770762,103830.0,103820.0,0.019]
[1734534508944,0.7226,103830.0,103820.0,0.019]
[1734534509248,0.08409974,103830.0,103820.0,0.058167]
[1734534509442,0.08509974,103830.0,103820.0,0.418967]
[1734534509746,0.08609974,103830.0,103820.0,0.065167]
[1734534510244,0.002,103830.0,103820.0,0.074167]
[1734534510440,0.002,103830.0,103820.0,0.64047362]
[1734534510841,0.08409974,103840.0,103830.0,0.048162]
[1734534511138,0.08409974,103850.0,103830.0,0.25366862]
[1734534511345,0.08409974,103850.0,103830.0,0.45466862]
[1734534511942,0.408954,103850.0,103830.0,0.201]
[1734534512746,0.408954,103850.0,103830.0,0.202]
[1734534512944,0.001,103840.0,103830.0,0.208]
[1734534513153,0.3618,103840.0,103830.0,0.007]
[1734534513541,0.3608,103840.0,103830.0,0.004]
[1734534514045,0.408958,103840.0,103830.0,0.001]
[1734534514250,0.409958,103840.0,103830.0,0.007]
[1734534514751,0.3618,103840.0,103830.0,0.006]
[1734534514952,0.409958,103840.0,103830.0,0.009]
[1734534515341,0.3618,103840.0,103830.0,0.009]
[1734534515850,0.3618,103840.0,103830.0,0.01860397]
[1734534516445,0.3618,103840.0,103830.0,0.06676597]
[1734534517040,0.001,103840.0,103830.0,0.27227259]
[1734534517237,0.001,103840.0,103830.0,0.63307259]
[1734534517553,0.00144529,103860.0,103850.0,0.048153]
[1734534517748,0.00144529,103860.0,103850.0,1.17363962]
[1734534517947,0.00144529,103860.0,103850.0,0.55918]
[1734534518149,0.36224529,103860.0,103850.0,0.55918]
[1734534518345,0.048153,103850.0,103830.0,0.37428397]
[1734534518548,0.3608,103840.0,103830.0,0.37428397]
[1734534518751,0.408958,103840.0,103830.0,0.37128397]
[1734534519257,0.3608,103840.0,103830.0,0.37128397]
[1734534519446,0.408955,103850.0,103830.0,0.37128397]
[1734534519645,0.3608,103850.0,103830.0,0.42044597]
[1734534520058,0.3608,103840.0,103830.0,0.42044597]
[1734534520256,0.36211973,103840.0,103830.0,0.2890486]
[1734534520443,0.00131973,103840.0,103830.0,0.85535522]
[1734534520642,0.00131973,103840.0,103830.0,1.05515522]
[1734534520854,0.04891973,103840.0,103830.0,0.00959822]
[1734534521061,0.408972,103810.0,103760.0,0.03838981]
[1734534521256,0.97529662,103770.0,103730.0,0.3708]
[1734534521551,0.25371062,103740.0,103730.0,0.01]
[1734534521757,0.56630662,103740.0,103730.0,0.01]
[1734534521959,0.61451062,103740.0,103730.0,0.01]
[1734534522160,0.048218,103710.0,103700.0,0.4682]
[1734534522457,0.048218,103710.0,103700.0,0.12698408]
[1734534522458,0.409018,103710.0,103700.0,0.12698408]
[1734534522846,0.689018,103710.0,103700.0,0.1074]
[1734534523049,0.689018,103710.0,103700.0,0.12199089]
[1734534523253,0.20550662,103720.0,103700.0,0.51651057]
[1734534523455,0.001,103710.0,103700.0,0.52551057]
[1734534523652,0.001,103710.0,103700.0,0.88631057]
[1734534524358,0.002,103710.0,103700.0,0.84709057]
[1734534524848,0.08393716,103730.0,103700.0,1.05259719]
[1734534525045,0.00152919,103740.0,103720.0,0.56630662]
[1734534525254,0.00152919,103740.0,103730.0,0.3608]
[1734534525653,8.218e-05,103740.0,103730.0,1.27035562]
[1734534525959,0.13989526,103760.0,103740.0,0.048204]
[1734534526158,0.1120146,103760.0,103750.0,0.56630662]
[1734534526359,0.1120146,103760.0,103750.0,0.61450662]
[1734534527060,0.13998239,103770.0,103750.0,0.97540358]
[1734534527253,8.713e-05,103770.0,103760.0,0.56630662]
[1734534528052,8.713e-05,103770.0,103760.0,0.61450162]
[1734534528561,0.00108713,103770.0,103760.0,0.62150162]
[1734534528759,0.00108713,103770.0,103760.0,0.62450162]
[1734534529358,0.00108713,103770.0,103760.0,0.92150162]
[1734534529554,0.00208713,103770.0,103760.0,0.93050162]
[1734534529754,0.00144699,103780.0,103770.0,0.04819]
[1734534529959,0.00144699,103780.0,103770.0,0.61449662]
[1734534530657,0.00144699,103780.0,103770.0,0.56630662]
[1734534531059,0.00244699,103780.0,103770.0,0.57330662]
[1734534531263,0.00244699,103780.0,103770.0,0.57630662]
[1734534531560,0.00244699,103780.0,103770.0,0.01]
[1734534531765,0.41143299,103780.0,103770.0,0.01]
[1734534533559,0.41143299,103780.0,103770.0,0.003]
[1734534533956,0.41143299,103780.0,103750.0,0.97052258]
[1734534534156,0.41043299,103780.0,103770.0,0.003]
[1734534534965,0.41043299,103780.0,103770.0,0.004]
[1734534535165,0.36356755,103780.0,103770.0,0.004]
[1734534535569,0.41175355,103780.0,103750.0,0.76501496]
[1734534535867,0.41175355,103780.0,103760.0,0.048195]
[1734534536054,0.41175355,103780.0,103750.0,0.76501396]
[1734534536262,0.00132056,103770.0,103750.0,0.81320996]
[1734534536461,0.00132056,103770.0,103750.0,0.76501296]
[1734534536865,0.00132056,103770.0,103760.0,0.048195]
[1734534537570,0.00132056,103770.0,103760.0,0.408995]
[1734534538254,0.00132056,103770.0,103760.0,0.3608]
[1734534538455,0.04951056,103770.0,103760.0,0.004]
[1734534539378,0.71031056,103770.0,103760.0,0.004]
[1734534539553,0.91581718,103770.0,103760.0,0.004]
[1734534539760,0.048195,103760.0,103750.0,9.696e-05]
[1734534539960,0.408995,103760.0,103750.0,9.696e-05]
[1734534540167,0.708995,103760.0,103750.0,9.696e-05]
[1734534540465,0.048204,103750.0,103730.0,0.048208]
[1734534540765,0.409004,103750.0,103730.0,0.048208]
[1734534541361,0.007,103760.0,103750.0,0.0482]
[1734534541854,0.005,103760.0,103750.0,0.0482]
[1734534542261,0.005,103760.0,103750.0,0.61450662]
[1734534542467,0.005,103760.0,103750.0,0.25370662]
[1734534542663,0.005,103760.0,103750.0,0.61450662]
[1734534543456,0.001,103760.0,103750.0,0.61450662]
[1734534544170,0.001,103760.0,103750.0,0.61950662]
[1734534544357,0.00144699,103780.0,103750.0,0.91950662]
[1734534544556,0.00144699,103780.0,103770.0,0.56630662]
[1734534544770,0.00144699,103780.0,103770.0,0.61449662]
[1734534545564,0.00144699,103780.0,103770.0,0.56630662]
[1734534546075,0.00144699,103780.0,103770.0,0.61449662]
[1734534546268,0.00144699,103780.0,103770.0,0.97045662]
[1734534546466,9.748e-05,103790.0,103770.0,0.97045662]
[1734534546672,0.04828048,103790.0,103770.0,0.92226662]
[1734534546881,0.04828048,103790.0,103770.0,0.92626662]
[1734534547166,0.04828048,103790.0,103770.0,0.97445562]
[1734534547364,0.04828048,103790.0,103770.0,0.92626662]
[1734534547572,0.04928048,103790.0,103770.0,0.71976]
[1734534547873,0.00209748,103790.0,103780.0,0.048186]
[1734534548068,0.00209748,103790.0,103770.0,0.92226662]
[1734534548374,0.05027948,103790.0,103770.0,0.97045562]
[1734534548572,0.05027948,103790.0,103770.0,1.01864262]
[1734534548873,0.05027948,103790.0,103770.0,1.01864162]
[1734534549068,0.05027948,103790.0,103770.0,0.97045362]
[1734534549375,0.05027948,103790.0,103770.0,1.01864062]
[1734534549574,0.04927948,103790.0,103770.0,1.03358938]
[1734534549766,0.00209748,103790.0,103780.0,0.048186]
[1734534550167,0.05028048,103790.0,103770.0,0.98540438]
[1734534550369,0.04928048,103790.0,103770.0,0.77989776]
[1734534550671,0.05028048,103790.0,103770.0,0.77989776]
[1734534550967,0.18937135,103790.0,103770.0,0.77989776]
[1734534551166,0.19037135,103790.0,103770.0,0.77989776]
[1734534552361,0.19037135,103790.0,103770.0,0.41909776]
[1734534552568,0.18937135,103790.0,103770.0,0.77989776]
[1734534552768,0.19037135,103790.0,103770.0,0.77989776]
[1734534553177,0.14218835,103790.0,103770.0,0.77989776]
[1734534553469,0.19037035,103790.0,103770.0,0.77989776]
[1734534553672,0.23855535,103790.0,103770.0,0.77989776]
[1734534553865,0.19037035,103790.0,103770.0,0.77989776]
[1734534554066,0.19037035,103790.0,103770.0,0.77989676]
[1734534554262,0.19037035,103790.0,103770.0,0.01494876]
[1734534554263,0.408986,103780.0,103770.0,0.01494876]
[1734534554468,0.0482,103750.0,103740.0,0.00751558]
[1734534554668,0.0482,103750.0,103740.0,0.04749901]
[1734534554972,0.409,103750.0,103740.0,0.04749901]
[1734534555285,0.409,103750.0,103740.0,0.00751558]
[1734534556073,0.55009087,103750.0,103740.0,0.00751558]
[1734534556588,0.55009087,103750.0,103740.0,0.04749901]
[1734534556589,1.05559749,103750.0,103740.0,0.04749901]
[1734534556869,1.05659749,103750.0,103740.0,0.00751558]
[1734534557077,1.05659749,103750.0,103720.0,0.08963945]
[1734534557078,0.048209,103730.0,103720.0,0.08963945]
[1734534557279,0.048209,103730.0,103720.0,0.04965602]
[1734534557669,0.048209,103730.0,103720.0,0.08963945]
[1734534558063,0.409009,103730.0,103720.0,7.241e-05]
[1734534558265,0.61451562,103730.0,103720.0,7.241e-05]
[1734534558886,0.048214,103720.0,103710.0,0.048218]
[1734534559264,0.048214,103720.0,103700.0,0.47609134]
[1734534559265,0.3608,103720.0,103700.0,0.47609134]
[1734534559469,0.048218,103710.0,103700.0,0.52431334]
[1734534559869,0.3608,103720.0,103700.0,0.52440343]
[1734534560072,0.409013,103720.0,103710.0,0.001]
[1734534560775,0.409013,103720.0,103700.0,0.51211209]
[1734534561079,0.409013,103720.0,103700.0,0.51311209]
[1734534562068,0.048218,103710.0,103700.0,0.46489009]
[1734534562265,0.048218,103710.0,103700.0,0.10309009]
[1734534562669,0.409018,103710.0,103700.0,0.10309009]
[1734534562870,0.409018,103710.0,103700.0,0.10009009]
[1734534563693,0.410018,103710.0,103700.0,0.10209009]
[1734534564279,0.409018,103710.0,103700.0,0.10209009]
[1734534564478,0.433028,103710.0,103700.0,0.10209009]
[1734534564668,0.93853462,103710.0,103700.0,0.10209009]
[1734534565077,0.048232,103680.0,103670.0,0.01]
[1734534565276,0.3608,103690.0,103670.0,0.3708]
[1734534565480,0.409023,103700.0,103680.0,0.3608]
[1734534565672,0.91452962,103700.0,103670.0,0.01]
[1734534565980,0.40903,103690.0,103670.0,0.058236]
[1734534566181,0.40903,103690.0,103670.0,0.07635278]
[1734534566182,0.048232,103680.0,103670.0,0.07635278]
[1734534566869,0.048232,103680.0,103670.0,0.07335278]
[1734534567269,0.048232,103680.0,103670.0,0.02511678]
[1734534567468,0.25373862,103680.0,103670.0,0.0101152]
[1734534567678,0.91453862,103680.0,103670.0,0.0101152]
[1734534568165,0.84305125,103680.0,103670.0,0.0101152]
[1734534568366,1.03575125,103680.0,103670.0,0.0101152]
[1734534568574,1.03575125,103680.0,103670.0,0.0111152]
[1734534569083,1.04075125,103680.0,103670.0,0.0111152]
[1734534569273,0.609732,103680.0,103670.0,0.0101152]
[1734534569476,0.909732,103680.0,103670.0,0.0101152]
[1734534569673,1.04375125,103680.0,103670.0,0.0101152]
[1734534569978,0.909732,103680.0,103670.0,1e-08]
[1734534570182,0.609732,103680.0,103670.0,1e-08]
[1734534570884,0.008,103680.0,103670.0,0.04823701]
[1734534571080,0.008,103680.0,103670.0,1e-08]
[1734534571283,0.85105125,103680.0,103670.0,1e-08]
[1734534572177,0.717032,103680.0,103670.0,1e-08]
[1734534572381,0.056232,103680.0,103670.0,1e-08]
[1734534572780,0.85105125,103680.0,103670.0,1e-08]
[1734534573186,0.71712318,103680.0,103670.0,1e-08]
[1734534574080,0.85114243,103680.0,103670.0,1e-08]
[1734534574477,0.048241,103660.0,103650.0,0.048246]
[1734534575686,0.048238,103670.0,103660.0,0.04824]
[1734534576380,0.048238,103670.0,103650.0,0.410044]
[1734534576593,0.096478,103670.0,103650.0,0.410044]
[1734534576778,0.048241,103660.0,103650.0,0.410044]
[1734534577093,0.048239,103670.0,103650.0,0.410044]
[1734534577286,0.00771,103660.0,103650.0,0.410044]
[1734534577487,0.055951,103660.0,103650.0,0.3608]
[1734534579280,0.0102,103660.0,103650.0,0.3618]
[1734534579776,0.0102,103660.0,103650.0,0.54406525]
[1734534579983,0.40912418,103680.0,103660.0,0.04824]
[1734534579984,9.118e-05,103680.0,103660.0,0.04824]
[1734534580177,9.118e-05,103680.0,103670.0,0.3608]
[1734534581186,0.01119118,103680.0,103670.0,0.3608]
[1734534581384,0.01119118,103680.0,103670.0,0.409037]
[1734534581987,0.01119118,103680.0,103670.0,0.54305625]
[1734534582193,0.00919118,103680.0,103670.0,0.54605625]
[1734534582392,0.00519118,103680.0,103670.0,0.54605625]
[1734534583183,0.00519118,103680.0,103670.0,0.74415625]
[1734534583581,0.00519118,103680.0,103670.0,0.69591925]
[1734534583784,0.00519118,103680.0,103670.0,0.610137]
[1734534584086,0.00519118,103680.0,103670.0,0.74415625]
[1734534584485,0.00519118,103680.0,103670.0,0.62548378]
[1734534584895,0.00519118,103680.0,103670.0,0.66758414]
[1734534586390,0.00519118,103680.0,103670.0,0.62548378]
[1734534586591,0.00519118,103680.0,103670.0,0.81958378]
[1734534586792,0.00519118,103680.0,103670.0,0.77134678]
[1734534586996,0.41422318,103680.0,103670.0,0.21244678]
[1734534587292,0.41422318,103680.0,103670.0,0.003]
[1734534587695,0.05342318,103680.0,103670.0,0.003]
[1734534587895,0.00519118,103680.0,103670.0,0.49781925]
[1734534588087,0.25297938,103690.0,103670.0,0.58515661]
[1734534588396,0.25297938,103690.0,103680.0,0.1955]
[1734534588586,0.30120638,103690.0,103680.0,0.5563]
[1734534588792,0.30120638,103690.0,103680.0,0.1955]
[1734534588989,0.11288851,103690.0,103670.0,0.3608]
[1734534589194,0.11288851,103690.0,103670.0,0.04210036]
[1734534589195,0.04832134,103680.0,103670.0,0.04210036]
[1734534589494,0.40912134,103680.0,103670.0,0.04210036]
[1734534590000,0.40912134,103680.0,103670.0,0.04310036]
[1734534590396,0.68323146,103680.0,103670.0,0.001]
[1734534590598,0.70723146,103680.0,103670.0,0.04210036]
[1734534590795,0.57521221,103680.0,103670.0,0.04210036]
[1734534591396,0.60123038,103680.0,103670.0,0.04210036]
[1734534591595,0.60723038,103680.0,103670.0,0.04210036]
[1734534591795,0.048237,103670.0,103660.0,0.09034136]
[1734534592102,0.60723138,103680.0,103660.0,0.45113936]
[1734534592306,0.43912234,103680.0,103660.0,0.45113936]
[1734534593093,0.43912234,103680.0,103670.0,0.048237]
[1734534593500,0.43912234,103680.0,103670.0,0.04210036]
[1734534593699,0.57871563,103680.0,103670.0,0.04210036]
[1734534594006,0.57571563,103680.0,103670.0,0.04210036]
[1734534594601,0.57471563,103680.0,103670.0,0.04410036]
[1734534596694,0.57603761,103680.0,103670.0,0.04410036]
[1734534597098,0.16700461,103680.0,103670.0,0.09233736]
[1734534597299,0.16700461,103680.0,103670.0,0.45313736]
[1734534597501,0.16700461,103680.0,103670.0,0.58715661]
[1734534598005,0.13877592,103680.0,103670.0,0.58715661]
[1734534598702,0.13877592,103680.0,103670.0,0.45313736]
[1734534599098,0.02541132,103680.0,103670.0,0.58715661]
[1734534599294,0.1133646,103690.0,103680.0,0.048232]
[1734534599498,0.1133646,103690.0,103680.0,0.611232]
[1734534599799,0.1133646,103690.0,103680.0,0.60510036]
[1734534599993,0.1615916,103690.0,103680.0,0.60510036]
[1734534600194,0.16168473,103690.0,103680.0,0.04210036]
[1734534600700,0.65650398,103690.0,103680.0,0.04210036]
[1734534600902,1.23750398,103690.0,103680.0,0.04210036]
[1734534601205,1.23750398,103690.0,103660.0,0.014158]
[1734534601206,0.048232,103680.0,103670.0,0.04210036]
[1734534601406,0.048237,103670.0,103660.0,0.04210036]
[1734534602606,0.16154435,103670.0,103660.0,0.04310036]
[1734534602998,0.16154435,103670.0,103660.0,0.09134136]
[1734534603203,0.16154435,103670.0,103660.0,0.04310036]
[1734534603609,0.048237,103670.0,103660.0,0.04310036]
[1734534603809,0.048237,103670.0,103660.0,0.04410036]
[1734534604110,0.55062629,103680.0,103670.0,0.048237]
[1734534604509,0.50239329,103680.0,103670.0,0.048237]
[1734534604706,0.50239329,103680.0,103670.0,0.09033736]
[1734534604897,0.14159329,103680.0,103670.0,0.45113736]
[1734534605214,0.16820217,103690.0,103680.0,0.048232]
[1734534605396,0.11857557,103690.0,103680.0,0.74255125]
[1734534605599,0.19612721,103720.0,103700.0,0.04822]
[1734534605810,0.24434021,103720.0,103700.0,0.3608]
[1734534605999,0.16164198,103700.0,103690.0,0.3608]
[1734534606201,0.048227,103690.0,103680.0,0.5603]
[1734534606406,0.048227,103690.0,103680.0,0.00012162]
[1734534606407,0.04829686,103690.0,103680.0,0.00012162]
[1734534606602,0.04829686,103690.0,103680.0,0.04008336]
[1734534606809,0.04829686,103690.0,103680.0,0.00012162]
[1734534607006,0.04929686,103690.0,103680.0,0.00012162]
[1734534607403,0.04929686,103690.0,103680.0,0.40915362]
[1734534607404,0.00106986,103690.0,103680.0,0.40915362]
[1734534607610,0.00106986,103690.0,103680.0,0.55698634]
[1734534607911,0.00106986,103690.0,103680.0,0.85698634]
[1734534608213,0.11341598,103710.0,103690.0,0.048227]
[1734534608514,0.11341598,103710.0,103700.0,0.409023]
[1734534608710,0.11341598,103710.0,103700.0,1.10014225]
[1734534608913,0.11341598,103710.0,103700.0,1.40014225]
[1734534609317,0.04829743,103730.0,103710.0,0.048216]
[1734534609318,8.743e-05,103730.0,103710.0,0.048216]
[1734534609516,0.11336576,103720.0,103710.0,0.89931525]
[1734534609708,0.11336576,103720.0,103710.0,1.46401525]